bitfinex/quotes_BTCUSD_20240810
["timestamp","ask_amount","ask_price","bid_price","bid_amount"]
[1723306584742,0.51166699,60697.0,60696.0,0.0514141]
[1723306584935,0.5501589,60697.0,60696.0,0.0514141]
[1723306585789,0.3854069,60697.0,60696.0,0.0514141]
[1723306585993,0.2254309,60697.0,60696.0,0.0514141]
[1723306586470,0.2254309,60697.0,60696.0,0.0314141]
[1723306586667,0.3078069,60697.0,60696.0,0.0514141]
[1723306587505,0.3078069,60697.0,60696.0,0.0314141]
[1723306587739,0.3078069,60697.0,60696.0,0.0514141]
[1723306587893,0.26931499,60697.0,60696.0,0.0514141]
[1723306588078,0.30769623,60697.0,60696.0,0.0514141]
[1723306589118,0.47244823,60697.0,60696.0,0.0314141]
[1723306589359,0.47244823,60697.0,60696.0,0.0229141]
[1723306589360,0.70060023,60697.0,60696.0,0.0229141]
[1723306589570,1.1706146,60697.0,60696.0,0.0229141]
[1723306589748,1.07219387,60697.0,60696.0,0.0229141]
[1723306590302,1.19521292,60697.0,60696.0,0.0229141]
[1723306590627,1.17061116,60697.0,60696.0,0.0229141]
[1723306590803,0.97776684,60697.0,60696.0,0.0229141]
[1723306590989,1.07618191,60697.0,60696.0,0.0229141]
[1723306591190,1.07418191,60697.0,60696.0,0.0009141]
[1723306591488,1.07407935,60697.0,60696.0,0.0019141]
[1723306591688,1.07474201,60697.0,60696.0,0.0029141]
[1723306591894,1.07474201,60697.0,60696.0,0.0019141]
[1723306592343,1.07474201,60697.0,60696.0,0.0029141]
[1723306592547,1.08479247,60697.0,60696.0,0.0029141]
[1723306592751,1.00843396,60697.0,60696.0,0.0029141]
[1723306592983,1.04695175,60697.0,60696.0,0.0029141]
[1723306593192,1.19152344,60697.0,60696.0,0.0029141]
[1723306593400,1.84308581,60697.0,60696.0,0.0029141]
[1723306593580,1.84308581,60697.0,60693.0,0.000913]
[1723306593581,0.57816,60694.0,60693.0,0.000913]
[1723306593771,0.752335,60689.0,60688.0,0.000913]
[1723306593990,2.06569792,60689.0,60688.0,0.000913]
[1723306594140,0.0015,60684.0,60668.0,0.0085]
[1723306594351,0.71868492,60684.0,60668.0,0.0085]
[1723306594550,1.00938677,60684.0,60669.0,0.0085]
[1723306594771,1.15689155,60684.0,60672.0,0.010913]
[1723306594979,0.84309877,60684.0,60673.0,0.01]
[1723306595181,0.96604022,60684.0,60672.0,0.009413]
[1723306595590,1.01520168,60684.0,60672.0,0.009413]
[1723306595799,1.01520168,60684.0,60678.0,0.0185]
[1723306595800,0.94968164,60684.0,60678.0,0.0185]
[1723306595977,0.94968164,60684.0,60683.0,0.0105]
[1723306595978,0.22416326,60684.0,60683.0,0.0105]
[1723306596175,0.11869634,60684.0,60683.0,0.0005]
[1723306596374,0.04159412,60684.0,60683.0,0.0005]
[1723306596600,0.04159412,60684.0,60683.0,0.111395]
[1723306596981,0.04159412,60684.0,60683.0,0.256185]
[1723306597177,0.03868027,60684.0,60683.0,0.256185]
[1723306597379,0.145785,60691.0,60685.0,0.082392]
[1723306597578,0.12332889,60690.0,60689.0,0.01]
[1723306597780,0.64332889,60690.0,60689.0,0.01]
[1723306598372,0.74332889,60690.0,60689.0,0.01]
[1723306598632,0.82571389,60690.0,60689.0,0.01]
[1723306599152,0.82570655,60690.0,60689.0,0.01]
[1723306599294,0.82670655,60690.0,60689.0,0.01]
[1723306599491,0.82870655,60690.0,60689.0,0.01]
[1723306599723,0.74632155,60690.0,60689.0,0.0085]
[1723306599917,0.74411811,60690.0,60689.0,0.0085]
[1723306600520,0.64411811,60690.0,60689.0,0.255661]
[1723306600733,0.64411811,60690.0,60689.0,0.501035]
[1723306600734,0.56447509,60690.0,60689.0,0.501035]
[1723306600967,0.5644551,60690.0,60689.0,0.521035]
[1723306601180,0.5624551,60690.0,60689.0,0.336261]
[1723306601364,0.5624551,60690.0,60689.0,0.171487]
[1723306601567,0.5614551,60690.0,60689.0,0.336261]
[1723306601739,0.5634551,60690.0,60689.0,0.3371751]
[1723306601919,0.5644551,60690.0,60689.0,0.3371751]
[1723306602123,0.5624551,60690.0,60689.0,0.3371751]
[1723306602322,0.5614551,60690.0,60689.0,0.3371751]
[1723306602535,0.56133264,60690.0,60689.0,0.3371751]
[1723306602729,0.56133264,60690.0,60689.0,0.3441751]
[1723306602956,0.56333264,60690.0,60689.0,0.3501751]
[1723306605062,0.56333264,60690.0,60689.0,0.1854011]
[1723306605631,0.56333264,60690.0,60689.0,0.3501751]
[1723306609137,0.56333264,60690.0,60689.0,0.3701751]
[1723306609752,0.56318276,60690.0,60689.0,0.3701751]
[1723306610172,0.56318267,60690.0,60689.0,0.3701751]
[1723306611015,0.56318267,60690.0,60689.0,0.1248011]
[1723306615253,0.56401367,60690.0,60689.0,0.0424141]
[1723306616537,0.56400136,60690.0,60689.0,0.0424141]
[1723306618759,0.56400136,60690.0,60689.0,0.0139141]
[1723306618760,1.38244328,60690.0,60689.0,0.0139141]
[1723306618909,1.79953362,60690.0,60689.0,0.0139141]
[1723306619090,1.82414983,60690.0,60689.0,0.0139141]
[1723306619299,1.7011688,60690.0,60689.0,0.0139141]
[1723306619732,1.7001688,60690.0,60689.0,0.0079141]
[1723306620036,1.701586,60690.0,60689.0,0.0009141]
[1723306620232,1.868357,60690.0,60689.0,0.0009141]
[1723306620456,0.576758,60684.0,60683.0,0.0005]
[1723306620613,1.12031402,60684.0,60683.0,0.0005]
[1723306620826,1.17929138,60684.0,60683.0,0.0005]
[1723306621281,1.27764863,60684.0,60683.0,0.0005]
[1723306621876,1.27847424,60684.0,60683.0,0.0005]
[1723306622273,1.18011699,60684.0,60683.0,0.0005]
[1723306622554,1.27847424,60684.0,60683.0,0.0005]
[1723306622973,1.27846197,60684.0,60683.0,0.0005]
[1723306623179,1.18010472,60684.0,60683.0,0.0005]
[1723306623489,1.87384209,60684.0,60683.0,0.0065]
[1723306623691,1.68605409,60684.0,60683.0,0.0065]
[1723306624018,1.61231672,60684.0,60683.0,0.0065]
[1723306624218,1.53709426,60684.0,60683.0,0.0125]
[1723306624377,1.58625496,60684.0,60683.0,0.0125]
[1723306624606,1.59601412,60684.0,60683.0,0.0125]
[1723306624796,1.54685342,60684.0,60683.0,0.0125]
[1723306625219,1.59600865,60684.0,60683.0,0.0125]
[1723306625784,1.25764657,60684.0,60683.0,0.0125]
[1723306625991,1.15233574,60684.0,60683.0,0.0125]
[1723306626871,0.76245374,60684.0,60683.0,0.021]
[1723306627093,0.22484774,60684.0,60683.0,0.021]
[1723306627261,0.38963574,60684.0,60683.0,0.021]
[1723306627464,0.38963574,60684.0,60683.0,0.041]
[1723306627665,0.38963574,60684.0,60683.0,0.021]
[1723306628069,0.38963574,60684.0,60683.0,0.041]
[1723306628070,0.22484774,60684.0,60683.0,0.041]
[1723306628288,0.14245374,60684.0,60683.0,0.0219141]
[1723306628522,0.04245374,60684.0,60683.0,0.0219141]
[1723306628758,0.38963574,60684.0,60683.0,0.0219141]
[1723306628981,0.88963574,60684.0,60683.0,0.0219141]
[1723306629416,0.85113558,60684.0,60683.0,0.0219141]
[1723306629663,0.8895286,60684.0,60683.0,0.0219141]
[1723306631519,1.0543166,60684.0,60683.0,0.0134141]
[1723306631757,1.1951166,60684.0,60683.0,0.0134141]
[1723306633012,1.36904326,60684.0,60683.0,0.0134141]
[1723306633256,1.66230591,60684.0,60683.0,0.0134141]
[1723306634391,1.47549099,60684.0,60683.0,0.0134141]
[1723306634622,1.41917347,60684.0,60683.0,0.0134141]
[1723306634906,0.72501689,60684.0,60683.0,0.0134141]
[1723306635125,0.72501689,60684.0,60683.0,0.0234141]
[1723306635126,0.64262289,60684.0,60683.0,0.0234141]
[1723306635383,0.64262289,60684.0,60683.0,0.0419141]
[1723306635384,0.54262289,60684.0,60683.0,0.0419141]
[1723306635612,0.62501689,60684.0,60683.0,0.0219141]
[1723306636305,0.58634758,60684.0,60683.0,0.0219141]
[1723306636555,0.78972645,60684.0,60683.0,0.0134141]
[1723306636776,0.62493845,60684.0,60683.0,0.0219141]
[1723306637494,0.78972645,60684.0,60683.0,0.0134141]
[1723306638215,0.78972645,60684.0,60683.0,0.0219141]
[1723306638709,0.62493845,60684.0,60683.0,0.0219141]
[1723306639718,0.58634758,60684.0,60683.0,0.0219141]
[1723306639949,0.62508006,60684.0,60683.0,0.0219141]
[1723306640161,0.58634758,60684.0,60683.0,0.0219141]
[1723306640368,0.62510811,60684.0,60683.0,0.0419141]
[1723306640572,0.54271411,60684.0,60683.0,0.0219141]
[1723306640770,0.62510811,60684.0,60683.0,0.0219141]
[1723306642680,0.54271411,60684.0,60683.0,0.2627041]
[1723306642911,0.54271411,60684.0,60683.0,0.3450991]
[1723306643087,0.54271411,60684.0,60683.0,0.3650991]
[1723306643296,0.54271411,60684.0,60683.0,0.3450991]
[1723306643297,0.54250772,60684.0,60683.0,0.3450991]
[1723306644702,0.54250772,60684.0,60683.0,0.3650991]
[1723306644898,0.54250772,60684.0,60683.0,0.1803091]
[1723306645071,0.54250772,60684.0,60683.0,0.2003091]
[1723306645844,0.54250772,60684.0,60683.0,0.1179141]
[1723306646717,0.54250208,60684.0,60683.0,0.1179141]
[1723306647520,0.54250208,60684.0,60683.0,0.0419141]
[1723306650730,0.54250208,60684.0,60683.0,0.1243091]
[1723306650930,0.54254349,60684.0,60683.0,0.1043091]
[1723306651364,0.54254349,60684.0,60683.0,0.0219141]
[1723306651562,0.85372549,60684.0,60683.0,0.0419141]
[1723306651838,0.60654349,60684.0,60683.0,0.0419141]
[1723306652013,0.54256119,60684.0,60683.0,0.0419141]
[1723306652417,0.62495519,60684.0,60683.0,0.0419141]
[1723306653806,0.58634758,60684.0,60683.0,0.0419141]
[1723306654025,0.62496131,60684.0,60683.0,0.0419141]
[1723306654874,0.78974931,60684.0,60683.0,0.0219141]
[1723306655080,0.78974931,60684.0,60683.0,0.0419141]
[1723306655582,0.78974931,60684.0,60683.0,0.0219141]
[1723306655787,0.75113558,60684.0,60683.0,0.0219141]
[1723306655928,0.89573558,60684.0,60683.0,0.0134141]
[1723306656133,1.2096999,60684.0,60683.0,0.0134141]
[1723306656333,1.20970624,60684.0,60683.0,0.0134141]
[1723306656528,1.23428806,60684.0,60683.0,0.0134141]
[1723306657172,1.27291709,60684.0,60683.0,0.0134141]
[1723306657482,1.4062354,60684.0,60683.0,0.0134141]
[1723306658045,1.36774074,60684.0,60683.0,0.0134141]
[1723306658253,1.33269543,60684.0,60683.0,0.0134141]
[1723306659354,1.40999247,60684.0,60683.0,0.0134141]
[1723306659557,1.1681096,60684.0,60683.0,0.0134141]
[1723306659796,1.14000148,60684.0,60683.0,0.0134141]
[1723306659997,1.30478948,60684.0,60683.0,0.0134141]
[1723306660197,1.03445483,60684.0,60683.0,0.0134141]
[1723306660457,1.19924283,60684.0,60683.0,0.0134141]
[1723306661825,1.19924283,60684.0,60683.0,0.0234141]
[1723306661826,0.95375483,60684.0,60683.0,0.0234141]
[1723306661959,0.72506683,60684.0,60683.0,0.0419141]
[1723306662364,0.72506683,60684.0,60683.0,0.0219141]
[1723306662813,0.72501105,60684.0,60683.0,0.0219141]
[1723306663241,0.6426178,60684.0,60683.0,0.0219141]
[1723306663444,0.7250118,60684.0,60683.0,0.0219141]
[1723306664495,0.6426178,60684.0,60683.0,0.0219141]
[1723306665265,0.7250118,60684.0,60683.0,0.0219141]
[1723306666475,0.72492108,60684.0,60683.0,0.0219141]
[1723306667644,0.64252708,60684.0,60683.0,0.0219141]
[1723306668017,0.64252708,60684.0,60683.0,0.0419141]
[1723306668243,0.54252708,60684.0,60683.0,0.92699402]
[1723306668453,0.54252708,60684.0,60683.0,1.05566539]
[1723306668454,0.00395358,60684.0,60683.0,1.05566539]
[1723306668653,0.00395358,60684.0,60683.0,1.03566539]
[1723306669073,0.001,60684.0,60683.0,1.03566539]
[1723306669192,0.000831,60689.0,60688.0,0.556442]
[1723306669391,0.600831,60689.0,60688.0,0.68511337]
[1723306669596,0.60368583,60689.0,60688.0,0.68511337]
[1723306671136,0.60468583,60689.0,60688.0,0.69311337]
[1723306671770,0.60468583,60689.0,60688.0,0.71311337]
[1723306672142,0.60468583,60689.0,60688.0,0.69311337]
[1723306672415,0.60468583,60689.0,60688.0,0.584442]
[1723306672646,0.60468583,60689.0,60688.0,0.599942]
[1723306673188,0.60468583,60689.0,60688.0,0.290665]
[1723306674899,0.60468583,60689.0,60688.0,0.125888]
[1723306676110,0.60468583,60689.0,60688.0,0.290665]
[1723306678013,0.60468583,60689.0,60688.0,0.435442]
[1723306678206,0.60468583,60689.0,60688.0,0.593742]
[1723306678412,0.60468583,60689.0,60688.0,0.573742]
[1723306678727,0.60468583,60689.0,60688.0,0.593742]
[1723306679980,0.60468583,60689.0,60688.0,0.573742]
[1723306680182,0.60468583,60689.0,60688.0,0.593742]
[1723306680341,0.60468583,60689.0,60688.0,0.573742]
[1723306680552,0.60468583,60689.0,60688.0,0.593742]
[1723306681406,0.60468583,60689.0,60688.0,0.573742]
[1723306681607,0.60468583,60689.0,60688.0,0.593742]
[1723306682373,0.60468583,60689.0,60688.0,0.290665]
[1723306684668,0.64310369,60689.0,60688.0,0.290665]
[1723306684875,0.60468583,60689.0,60688.0,0.290665]
[1723306685936,0.60468583,60689.0,60688.0,0.025]
[1723306686222,1.13087349,60689.0,60688.0,0.015]
[1723306686396,1.29564749,60689.0,60688.0,0.015]
[1723306687367,1.59026934,60689.0,60688.0,0.015]
[1723306687810,1.5902681,60689.0,60688.0,0.015]
[1723306688332,1.34480671,60689.0,60688.0,0.015]
[1723306688542,1.29564507,60689.0,60688.0,0.015]
[1723306688760,1.34480534,60689.0,60688.0,0.015]
[1723306688877,1.42542109,60689.0,60688.0,0.015]
[1723306689188,1.35164689,60689.0,60688.0,0.015]
[1723306689997,1.56557792,60689.0,60688.0,0.015]
[1723306690192,1.51546181,60689.0,60688.0,0.015]
[1723306690409,1.68930269,60689.0,60688.0,0.015]
[1723306690646,1.77877039,60689.0,60688.0,0.015]
[1723306691218,1.77877039,60689.0,60688.0,0.0159141]
[1723306691570,1.87707669,60689.0,60688.0,0.0159141]
[1723306691771,1.61219065,60689.0,60688.0,0.0159141]
[1723306691994,1.35164689,60689.0,60688.0,0.0159141]
[1723306692187,1.29564507,60689.0,60688.0,0.0159141]
[1723306693927,1.29557535,60689.0,60688.0,0.0159141]
[1723306694961,1.34473039,60689.0,60688.0,0.0159141]
[1723306695299,1.29557535,60689.0,60688.0,0.0159141]
[1723306695499,1.34473039,60689.0,60688.0,0.0159141]
[1723306695711,1.34476541,60689.0,60688.0,0.0159141]
[1723306696069,1.29561037,60689.0,60688.0,0.0159141]
[1723306696266,0.64307537,60689.0,60688.0,0.1268021]
[1723306696611,0.64307537,60689.0,60688.0,0.74057102]
[1723306696612,0.601831,60689.0,60688.0,0.74057102]
[1723306696792,0.601831,60689.0,60688.0,0.76057102]
[1723306697249,0.60454386,60689.0,60688.0,0.76057102]
[1723306697417,0.60454386,60689.0,60688.0,0.74057102]
[1723306697616,0.60454386,60689.0,60688.0,0.76057102]
[1723306698834,0.60454386,60689.0,60688.0,1.05510891]
[1723306699031,0.60454386,60689.0,60688.0,1.03510891]
[1723306699197,0.601831,60689.0,60688.0,1.03510891]
[1723306699828,0.601831,60689.0,60688.0,1.05510891]
[1723306700026,0.601831,60689.0,60688.0,1.03510891]
[1723306700682,0.601831,60689.0,60688.0,0.89033191]
[1723306701097,0.601831,60689.0,60688.0,0.66331699]
[1723306701433,0.601831,60689.0,60688.0,0.66356194]
[1723306702372,0.601831,60689.0,60688.0,0.66300532]
[1723306703682,0.60454386,60689.0,60688.0,0.66300532]
[1723306704656,0.601831,60689.0,60688.0,0.66300532]
[1723306705887,0.601831,60689.0,60688.0,0.5335561]
[1723306706082,0.601831,60689.0,60688.0,0.6633585]
[1723306706501,0.601831,60689.0,60688.0,0.99195042]
[1723306707819,0.601831,60689.0,60688.0,0.99235404]
[1723306711115,0.601831,60689.0,60688.0,0.86214802]
[1723306711317,0.601831,60689.0,60688.0,0.99233497]
[1723306711460,0.601831,60689.0,60688.0,0.86214802]
[1723306712480,0.601831,60689.0,60688.0,0.4563561]
[1723306712683,0.601831,60689.0,60688.0,0.2915791]
[1723306713156,0.60455395,60689.0,60688.0,0.2915791]
[1723306713362,0.60455395,60689.0,60688.0,0.1268021]
[1723306713582,0.60455395,60689.0,60688.0,0.0444141]
[1723306713583,0.668431,60689.0,60688.0,0.0444141]
[1723306713895,0.668431,60689.0,60688.0,0.1268021]
[1723306714485,0.667431,60689.0,60688.0,0.1188021]
[1723306714786,0.667431,60689.0,60688.0,0.2835791]
[1723306714987,0.668431,60689.0,60688.0,0.2895791]
[1723306715226,0.67115376,60689.0,60688.0,0.2895791]
[1723306715425,0.67215376,60689.0,60688.0,0.2975791]
[1723306715576,0.67215371,60689.0,60688.0,0.2975791]
[1723306715759,0.669431,60689.0,60688.0,0.1328021]
[1723306715937,0.668431,60689.0,60688.0,0.1248021]
[1723306716377,0.669431,60689.0,60688.0,0.1378021]
[1723306716822,0.667431,60689.0,60688.0,0.1118021]
[1723306717512,0.667431,60689.0,60688.0,0.1238021]
[1723306717513,0.67016448,60689.0,60688.0,0.1238021]
[1723306717719,0.67016448,60689.0,60688.0,0.0918021]
[1723306718163,0.667431,60689.0,60688.0,0.1038021]
[1723306718391,0.67016259,60689.0,60688.0,0.1038021]
[1723306718570,0.67016259,60689.0,60688.0,0.1238021]
[1723306718767,0.668431,60689.0,60688.0,0.0544141]
[1723306718952,0.78885342,60689.0,60688.0,0.0544141]
[1723306719296,0.86767936,60689.0,60688.0,0.0214141]
[1723306719503,0.78256642,60689.0,60688.0,0.0214141]
[1723306719634,0.78256642,60689.0,60688.0,0.0259141]
[1723306719635,1.52409034,60689.0,60688.0,0.0259141]
[1723306720044,1.64709034,60689.0,60688.0,0.0259141]
[1723306720474,1.64709034,60689.0,60688.0,0.0139141]
[1723306720622,1.69769593,60689.0,60688.0,0.0139141]
[1723306720823,2.0773379,60689.0,60688.0,0.0219141]
[1723306721327,1.95457391,60689.0,60688.0,0.0139141]
[1723306721478,2.07726272,60689.0,60688.0,0.0139141]
[1723306721682,2.07726272,60689.0,60683.0,0.0014141]
[1723306721683,0.721958,60684.0,60683.0,0.0014141]
[1723306721881,1.98277716,60684.0,60683.0,0.0014141]
[1723306722063,2.10577716,60684.0,60683.0,0.0014141]
[1723306723288,2.23635778,60684.0,60683.0,0.0024141]
[1723306723495,2.23682254,60684.0,60683.0,0.0024141]
[1723306723900,2.22882254,60684.0,60683.0,0.0014141]
[1723306724111,0.313669,60684.0,60683.0,0.0014141]
[1723306724305,0.26412942,60684.0,60683.0,0.0014141]
[1723306724531,0.18173542,60684.0,60683.0,0.0014141]
[1723306724903,0.18273542,60684.0,60683.0,0.0024141]
[1723306725453,0.26412942,60684.0,60683.0,0.0014141]
[1723306725600,0.27412942,60684.0,60683.0,0.0024141]
[1723306725801,0.27512942,60684.0,60683.0,0.0024141]
[1723306726003,0.43991742,60684.0,60683.0,0.0024141]
[1723306726204,0.42991742,60684.0,60683.0,0.0014141]
[1723306727022,0.26812942,60684.0,60683.0,0.0014141]
[1723306728108,0.26712942,60684.0,60683.0,0.0014141]
[1723306728306,0.51376388,60684.0,60683.0,0.0014141]
[1723306728950,0.51076388,60684.0,60683.0,0.0014141]
[1723306729558,0.34597588,60684.0,60683.0,0.0024141]
[1723306729800,0.34797588,60684.0,60683.0,0.0024141]
[1723306730009,1.01797588,60684.0,60683.0,0.0024141]
[1723306730440,1.01597588,60684.0,60683.0,0.0024141]
[1723306730821,1.01897588,60684.0,60683.0,0.0124141]
[1723306731292,1.34855188,60684.0,60683.0,0.0014141]
[1723306731511,1.44855188,60684.0,60683.0,0.0014141]
[1723306732823,1.44555188,60684.0,60683.0,0.0014141]
[1723306733195,1.44755188,60684.0,60683.0,0.0014141]
[1723306733980,1.40751646,60684.0,60683.0,0.0014141]
[1723306734210,1.44571783,60684.0,60683.0,0.0014141]
[1723306734386,1.80032075,60684.0,60683.0,0.0014141]
[1723306736059,1.79732075,60684.0,60683.0,0.0014141]
[1723306736403,1.79932075,60684.0,60683.0,0.0014141]
[1723306737220,1.55268629,60684.0,60683.0,0.0014141]
[1723306737682,1.55284896,60684.0,60683.0,0.0014141]
[1723306740661,1.36603404,60684.0,60683.0,0.0014141]
[1723306740884,1.36601881,60684.0,60683.0,0.0014141]
[1723306742658,1.52983373,60684.0,60683.0,0.0014141]
[1723306742934,1.55283373,60684.0,60683.0,0.0014141]
[1723306743055,1.60878743,60684.0,60683.0,0.0014141]
[1723306743260,1.55283373,60684.0,60683.0,0.0014141]
[1723306743578,1.36601881,60684.0,60683.0,0.0014141]
[1723306745083,1.71762173,60684.0,60683.0,0.0014141]
[1723306745300,1.77368992,60684.0,60683.0,0.0014141]
[1723306745505,1.77518992,60684.0,60683.0,0.0014141]
[1723306745708,1.85142995,60684.0,60683.0,0.0014141]
[1723306746585,1.84942995,60684.0,60683.0,0.0014141]
[1723306746916,1.85142995,60684.0,60683.0,0.0014141]
[1723306747313,1.84942995,60684.0,60683.0,0.0014141]
[1723306747848,1.68077292,60684.0,60683.0,0.0014141]
[1723306748057,1.85283108,60684.0,60683.0,0.0014141]
[1723306748521,1.77571111,60684.0,60683.0,0.0014141]
[1723306748752,1.85133094,60684.0,60683.0,0.0014141]
[1723306748986,1.85283094,60684.0,60683.0,0.0014141]
[1723306749183,1.75729174,60684.0,60683.0,0.0014141]
[1723306749377,1.85193368,60684.0,60683.0,0.0014141]
[1723306749516,1.85043368,60684.0,60683.0,0.0014141]
[1723306749898,1.84843368,60684.0,60683.0,0.0014141]
[1723306750343,1.68564568,60684.0,60683.0,0.0014141]
[1723306750545,1.60912686,60684.0,60683.0,0.0014141]
[1723306750752,1.77191486,60684.0,60683.0,0.0014141]
[1723306751047,1.60712686,60684.0,60683.0,0.0014141]
[1723306751198,1.5529939,60684.0,60683.0,0.0014141]
[1723306751407,1.60914566,60684.0,60683.0,0.0014141]
[1723306751608,1.77395673,60684.0,60683.0,0.0014141]
[1723306752010,1.85060381,60684.0,60683.0,0.0014141]
[1723306752961,1.84860381,60684.0,60683.0,0.0014141]
[1723306753253,1.84869336,60684.0,60683.0,0.0014141]
[1723306753594,1.85069336,60684.0,60683.0,0.0014141]
[1723306754560,1.84869336,60684.0,60683.0,0.0014141]
[1723306754761,1.84969336,60684.0,60683.0,0.0014141]
[1723306755300,1.77295673,60684.0,60683.0,0.0014141]
[1723306755500,1.84983667,60684.0,60683.0,0.0014141]
[1723306756807,1.90033072,60684.0,60683.0,0.0014141]
[1723306757366,1.92482775,60684.0,60683.0,0.0014141]
[1723306757567,1.84983667,60684.0,60683.0,0.0014141]
[1723306757773,1.60794867,60684.0,60683.0,0.0014141]
[1723306757985,1.77273667,60684.0,60683.0,0.0014141]
[1723306758183,1.60794867,60684.0,60683.0,0.0014141]
[1723306758406,1.65702183,60684.0,60683.0,0.0014141]
[1723306758571,1.67805286,60684.0,60683.0,0.0014141]
[1723306758771,1.77268874,60684.0,60683.0,0.0014141]
[1723306759226,1.77262471,60684.0,60683.0,0.0014141]
[1723306759591,1.67805286,60684.0,60683.0,0.0014141]
[1723306759782,1.82115544,60684.0,60683.0,0.0014141]
[1723306760419,1.82122735,60684.0,60683.0,0.0014141]
[1723306760958,1.8213863,60684.0,60683.0,0.0014141]
[1723306761157,1.77224123,60684.0,60683.0,0.0014141]
[1723306761328,1.84595884,60684.0,60683.0,0.0014141]
[1723306761564,1.7819394,60684.0,60683.0,0.0014141]
[1723306761846,1.88022954,60684.0,60683.0,0.0014141]
[1723306762098,1.88025557,60684.0,60683.0,0.0014141]
[1723306762333,1.7819394,60684.0,60683.0,0.0014141]
[1723306762520,1.90480208,60684.0,60683.0,0.0014141]
[1723306763059,1.90533013,60684.0,60683.0,0.0014141]
[1723306763507,1.78246745,60684.0,60683.0,0.0014141]
[1723306763668,1.90542612,60684.0,60683.0,0.0014141]
[1723306764063,1.78246745,60684.0,60683.0,0.0014141]
[1723306764815,1.90546333,60684.0,60683.0,0.0014141]
[1723306765014,1.90546372,60684.0,60683.0,0.0014141]
[1723306765460,1.78246745,60684.0,60683.0,0.0014141]
[1723306765666,1.90550699,60684.0,60683.0,0.0014141]
[1723306766065,1.78246745,60684.0,60683.0,0.0014141]
[1723306766636,1.90551649,60684.0,60683.0,0.0014141]
[1723306767040,1.90538623,60684.0,60683.0,0.0014141]
[1723306767490,1.78133719,60684.0,60683.0,0.0014141]
[1723306767665,1.78133719,60684.0,60683.0,0.0024141]
[1723306768237,1.78133719,60684.0,60683.0,0.0034141]
[1723306768470,1.78133719,60684.0,60683.0,0.0024141]
[1723306768732,1.61654919,60684.0,60683.0,0.0024141]
[1723306768865,1.61654919,60684.0,60683.0,0.0014141]
[1723306769276,1.9054108,60684.0,60683.0,0.0014141]
[1723306769472,1.78233719,60684.0,60683.0,0.0014141]
[1723306769696,1.65104497,60684.0,60683.0,0.0014141]
[1723306769898,1.52794919,60684.0,60683.0,0.0014141]
[1723306770098,1.65104497,60684.0,60683.0,0.0014141]
[1723306770499,1.52794919,60684.0,60683.0,0.0014141]
[1723306770882,1.35548309,60684.0,60683.0,0.0014141]
[1723306771085,1.64923195,60684.0,60683.0,0.0014141]
[1723306771330,1.52613454,60684.0,60683.0,0.0024141]
[1723306771546,1.52612497,60684.0,60683.0,0.0024141]
[1723306771894,1.52612497,60684.0,60683.0,0.0044141]
[1723306772333,1.52612497,60684.0,60683.0,0.0074141]
[1723306772502,1.28366315,60684.0,60683.0,0.0074141]
[1723306772705,0.53298313,60684.0,60683.0,0.0074141]
[1723306772942,0.69777113,60684.0,60683.0,0.0044141]
[1723306773284,0.12198621,60684.0,60683.0,0.0129141]
[1723306773424,0.08766426,60684.0,60683.0,0.1755141]
[1723306773624,0.03841519,60684.0,60683.0,0.2379091]
[1723306773842,0.03841519,60685.0,60683.0,0.2379091]
[1723306774080,0.03841519,60684.0,60683.0,0.1525141]
[1723306774494,0.082392,60685.0,60684.0,0.02]
[1723306774638,0.082392,60685.0,60683.0,0.1545141]
[1723306774639,0.082394,60684.0,60683.0,0.1765141]
[1723306774840,0.12067943,60684.0,60683.0,0.1745141]
[1723306775106,0.03828543,60684.0,60683.0,0.1745141]
[1723306775261,0.03828543,60684.0,60683.0,0.1545141]
[1723306775440,0.03828543,60685.0,60683.0,0.1525141]
[1723306775648,0.61828543,60685.0,60683.0,0.1555141]
[1723306775845,0.03828543,60684.0,60683.0,0.1585141]
[1723306776271,0.03845824,60685.0,60684.0,0.0085]
[1723306776445,0.08322,60688.0,60686.0,0.0085]
[1723306776700,0.12084765,60687.0,60686.0,0.0085]
[1723306776876,0.55845865,60687.0,60686.0,0.0858]
[1723306777088,0.64084765,60687.0,60686.0,0.0858]
[1723306777476,0.64084765,60687.0,60686.0,0.0085]
[1723306777667,0.164785,60685.0,60684.0,0.01]
[1723306777865,0.80563565,60685.0,60684.0,0.012]
[1723306778285,0.80563565,60685.0,60684.0,0.01]
[1723306778487,0.80573825,60685.0,60684.0,0.01]
[1723306779044,0.80573763,60685.0,60684.0,0.01]
[1723306779368,0.80573763,60685.0,60684.0,0.018]
[1723306779849,0.80673763,60685.0,60684.0,0.025]
[1723306780197,0.80573763,60685.0,60684.0,0.018]
[1723306780619,0.80573763,60685.0,60684.0,0.021]
[1723306781228,0.80573763,60685.0,60684.0,0.013]
[1723306781555,0.28573763,60685.0,60684.0,0.013]
[1723306781771,0.28573763,60685.0,60684.0,0.017]
[1723306782112,0.28573763,60685.0,60684.0,0.013]
[1723306782314,0.28573763,60685.0,60684.0,0.01]
[1723306782527,0.28573763,60685.0,60684.0,0.018]
[1723306782712,0.28673815,60685.0,60684.0,0.025]
[1723306782939,0.28673815,60685.0,60684.0,0.017]
[1723306783138,0.28673814,60685.0,60684.0,0.017]
[1723306783361,0.28673814,60685.0,60684.0,0.021]
[1723306783534,0.28673814,60685.0,60684.0,0.014]
[1723306783737,0.12095314,60685.0,60684.0,0.014]
[1723306783937,0.12095314,60685.0,60684.0,0.1098]
[1723306783938,0.03856114,60685.0,60684.0,0.1098]
[1723306784143,0.03856114,60685.0,60684.0,0.1118]
[1723306784359,0.082389,60687.0,60686.0,0.01]
[1723306784550,0.12089044,60687.0,60684.0,0.0918]
[1723306784750,0.03850144,60686.0,60684.0,0.0918]
[1723306784996,0.03850144,60686.0,60685.0,0.01]
[1723306785290,0.03850144,60686.0,60685.0,0.0085]
[1723306785590,0.03850144,60686.0,60685.0,0.0285]
[1723306785742,0.03850144,60686.0,60685.0,0.0085]
[1723306786557,0.03850144,60686.0,60685.0,0.0115]
[1723306786963,0.03850144,60687.0,60685.0,0.0105]
[1723306787364,0.03850144,60687.0,60685.0,0.0175]
[1723306787657,0.03850144,60687.0,60686.0,0.01]
[1723306787862,0.12089044,60687.0,60686.0,0.01]
[1723306788266,0.12089044,60687.0,60685.0,0.0155]
[1723306788468,0.03850144,60686.0,60685.0,0.0155]
[1723306789265,0.03850144,60686.0,60685.0,0.0085]
[1723306789470,0.03950144,60686.0,60685.0,0.0145]
[1723306790051,0.03835048,60686.0,60685.0,0.0115]
[1723306790408,0.03835048,60686.0,60685.0,0.0125]
[1723306790770,0.03835048,60686.0,60685.0,0.0195]
[1723306790972,0.03835048,60686.0,60685.0,0.0155]